fUSD/lending_fUSD_20251230
["ID","MTS","AMOUNT","RATE_DAILY","PERIOD"]
[400066344,1767061754492,-167.8958612,0.00016599,2]
[400066345,1767061754516,-500.0,0.00016599,2]
[400066346,1767061754540,-500.0,0.00016599,2]
[400066347,1767061754560,-695.86,0.00016599,2]
[400066348,1767061754582,-500.0,0.00016599,2]
[400066349,1767061754609,-500.0,0.00016599,2]
[400066350,1767061754632,-500.0,0.00016599,2]
[400066351,1767061754654,-500.0,0.00016599,2]
[400066352,1767061754675,-500.0,0.00016599,2]
[400066353,1767061754697,-500.0,0.00016599,2]
[400066354,1767061754716,-502.35740859,0.00016599,2]
[400066355,1767061754735,-500.0,0.00016599,2]
[400066356,1767061754758,-608.12138438,0.00016599,2]
[400066357,1767061754777,-500.0,0.00016599,2]
[400066358,1767061754797,-425.36808982,0.00016599,2]
[400066359,1767061754821,-299471.45472917,0.000166,2]
[400066370,1767061764096,-913.80986157,0.00016623,2]
[400066371,1767061764119,-150.0,0.000167,2]
[400066372,1767061764144,-233.33766717,0.00016853,2]
[400066373,1767061764173,-695.86,0.00016873,2]
[400066374,1767061764210,-196.31661926,0.000169,2]
[400066375,1767061764232,-383.31888798,0.00016988,2]
[400066376,1767061764252,-300.0,0.00016999,2]
[400066377,1767061764274,-666.0,0.00016999,2]
[400066378,1767061764297,-512.26213556,0.00016999,2]
[400066379,1767061764320,-490.89037969,0.00016999,2]
[400066380,1767061764342,-500.0,0.00016999,2]
[400066381,1767061764367,-500.0,0.00016999,2]
[400066382,1767061764390,-410.46631629,0.00016999,2]
[400066383,1767061764412,-500.0,0.00016999,2]
[400066384,1767061764435,-500.0,0.00016999,2]
[400066385,1767061764455,-151.38714321,0.00016999,2]
[400066386,1767061764478,-500.0,0.00016999,2]
[400066387,1767061764499,-395.02919672,0.00016999,2]
[400066388,1767061764519,-250.0,0.00017,2]
[400066389,1767061764548,-55368.87341255,0.00017,2]
[400066391,1767061769094,-274.45156801,0.000169,2]
[400066392,1767061769118,-41079.31991199,0.00017,2]
[400066394,1767061771084,-8110.007444,0.00017,2]
[400066395,1767061772132,-25903.1591,0.00017,2]
[400066403,1767061831485,-151.0,0.00016613,2]
[400066405,1767061831496,-151.0,0.00016613,2]
[400066407,1767061831506,-151.0,0.00016629,2]
[400066410,1767061831522,-151.0,0.00016629,2]
[400066412,1767061831532,-151.0,0.00016647,2]
[400066414,1767061831543,-151.0,0.00016647,2]
[400066415,1767061831554,-151.0,0.00016647,2]
[400066416,1767061831566,-151.0,0.00016647,2]
[400066417,1767061831577,-42.37870014,0.000169,2]
[400066418,1767061831590,-1499.73759379,0.000169,2]
[400066419,1767061831604,-510.25515832,0.000169,2]
[400066420,1767061831614,-440.99944013,0.000169,2]
[400066421,1767061831624,-206.28359521,0.0001699,2]
[400066422,1767061831635,-206.28359521,0.0001699,2]
[400066423,1767061831646,-206.28359521,0.0001699,2]
[400066424,1767061831657,-300.0,0.00016999,2]
[400066425,1767061831668,-5201.1062409,0.00017,2]
[400066426,1767061831681,-3987.86710155,0.00017,2]
[400066427,1767061831694,-14933.57826226,0.00017,2]
[400066430,1767061831787,-744.41207879,0.00017,2]
[400066431,1767061831800,-2141.27329945,0.00017,2]
[400066432,1767061831813,-1066.25609508,0.00017,2]
[400066434,1767061831827,-7227.75250886,0.00017,2]
[400066435,1767061831841,-9927.39457831,0.00017,2]
[400066436,1767061831854,-520.22306853,0.00017,2]
[400066439,1767061831866,-27089.6726241,0.00017,2]
[400066440,1767061831884,-391.2107439,0.00017,2]
[400066443,1767061831897,-1905.14323361,0.00017,2]
[400066444,1767061831911,-1335.80895032,0.00017,2]
[400066445,1767061831924,-2574.61479754,0.00017,2]
[400066477,1767061837540,-661.68,0.000169,2]
[400066478,1767061837553,-1446.62639381,0.000169,2]
[400066479,1767061837612,-500.0,0.000169,2]
[400066480,1767061837624,-4224.61971556,0.000169,2]
[400066481,1767061837653,-4937.76338532,0.000169,2]
[400066482,1767061837664,-650.97694296,0.000169,2]
[400066672,1767061839626,-1727.05004987,0.000169,2]
[400066680,1767061839700,-1795.70106271,0.000169,2]
[400066683,1767061839709,-196.31661926,0.000169,2]
[400066685,1767061839719,-1720.755285,0.00017,2]
[400066687,1767061839731,-16268.82144085,0.00017,2]
[400066844,1767061845750,-151.0,0.00016699,2]
[400066845,1767061845760,-151.0,0.00016699,2]
[400066846,1767061845770,-8301.00000164,0.00017,2]
[400066847,1767061845781,-5928.89057711,0.00017,2]
[400066848,1767061845794,-426.04450591,0.00017,2]
[400067205,1767062844088,-278.55,0.00013699,2]
[400067206,1767062844109,-2552.9153986,0.00015068,2]
[400067207,1767062844147,-304.7581324,0.00015068,2]
[400067208,1767062844169,-1489.410203,0.00016355,2]
[400067209,1767062844190,-151.0,0.00016432,2]
[400067210,1767062844212,-151.0,0.00016432,2]
[400067211,1767062844233,-300.0,0.00016437,2]
[400067212,1767062844255,-300.0,0.00016438,2]
[400067213,1767062844276,-2370.38187761,0.00016438,2]
[400067219,1767062848124,-2632.40812239,0.00016438,2]
[400067220,1767062848146,-1106.846,0.00016499,2]
[400067221,1767062848167,-171.174,0.00016499,2]
[400067222,1767062848188,-300.0,0.00016499,2]
[400067223,1767062848213,-2483.42506405,0.000165,2]
[400067232,1767062946104,-4688.5049,0.000164,2]
[400067233,1767062946125,-151.0,0.00016515,2]
[400067234,1767062946145,-151.0,0.00016515,2]
[400067235,1767062946165,-151.0,0.00016516,2]
[400067236,1767062946186,-151.0,0.00016516,2]
[400067237,1767062946206,-151.0,0.0001652,2]
[400067238,1767062946226,-151.0,0.0001652,2]
[400067239,1767062946249,-151.0,0.0001652,2]
[400067240,1767062946270,-151.0,0.0001652,2]
[400067241,1767062946290,-1037.7679818,0.00016899,2]
[400067242,1767062946311,-185.15883523,0.000169,2]
[400067243,1767062946332,-3913.53107723,0.000169,2]
[400067244,1767062946354,-10192.04302598,0.000169,2]
[400067245,1767062946374,-189.09279759,0.000169,2]
[400067246,1767062946393,-196.31661926,0.000169,2]
[400067247,1767062946413,-151.28836291,0.000169,2]
[400067256,1767062955112,-151.0,0.00016555,2]
[400067257,1767062955132,-151.0,0.00016555,2]
[400067258,1767062955153,-293.99962676,0.000169,2]
[400067259,1767062955175,-196.2471178,0.000169,2]
[400067260,1767062955195,-289.41861995,0.000169,2]
[400067261,1767062955215,-11870.30079549,0.00016988,2]
[400067265,1767062962094,-1347.87041961,0.00016988,2]
[400067266,1767062962113,-2439.0718474,0.00016988,2]
[400067267,1767062962133,-506.94821689,0.0001699,2]
[400067268,1767062962153,-200.0,0.0001699,2]
[400067269,1767062962172,-185.5213676,0.0001699,2]
[400067270,1767062962191,-268.90557156,0.0001699,2]
[400067271,1767062962211,-200.0,0.0001699,2]
[400067272,1767062962231,-151.0,0.0001699,2]
[400067273,1767062962251,-151.0,0.0001699,2]
[400067274,1767062962270,-151.0,0.0001699,2]
[400067275,1767062962289,-151.0,0.0001699,2]
[400067276,1767062962310,-151.0,0.0001699,2]
[400067277,1767062962329,-151.0,0.0001699,2]
[400067278,1767062962349,-151.0,0.0001699,2]
[400067279,1767062962370,-99.49238894,0.0001699,2]
[400067281,1767062969075,-151.0,0.00016685,2]
[400067282,1767062969111,-151.0,0.00016685,2]
[400067283,1767062969133,-203.49491284,0.000169,2]
[400067284,1767062969154,-51.50761106,0.0001699,2]
[400067285,1767062969175,-151.0,0.0001699,2]
[400067286,1767062969197,-151.0,0.0001699,2]
[400067287,1767062969218,-151.0,0.0001699,2]
[400067288,1767062969238,-151.0,0.0001699,2]
[400067289,1767062969259,-111.3482341,0.0001699,2]
[400067328,1767063031620,-151.0,0.00016649,2]
[400067329,1767063031631,-151.0,0.00016649,2]
[400067330,1767063031641,-262.90385506,0.000169,2]
[400067331,1767063031651,-241.1821833,0.000169,2]
[400067332,1767063031661,-195.99975116,0.000169,2]
[400067333,1767063031672,-39.6517659,0.0001699,2]
[400067334,1767063031682,-192.43582026,0.0001699,2]
[400067335,1767063031697,-300.0,0.00016998,2]
[400067336,1767063031706,-300.0,0.00016998,2]
[400067337,1767063031716,-300.0,0.00016999,2]
[400067338,1767063031726,-453.54650552,0.00016999,2]
[400067339,1767063031741,-500.0,0.00016999,2]
[400067340,1767063031751,-500.0,0.00016999,2]
[400067341,1767063031761,-500.0,0.00016999,2]
[400067342,1767063031771,-480.97146187,0.00016999,2]
[400067343,1767063031781,-413.03797956,0.00016999,2]
[400067344,1767063031790,-213.45425169,0.00016999,2]
[400067349,1767063031995,-316.91435549,0.00016999,2]
[400067351,1767063032005,-500.0,0.00016999,2]
[400067352,1767063032015,-500.0,0.00016999,2]
[400067353,1767063032024,-205.47392838,0.00016999,2]
[400067354,1767063032034,-500.0,0.00016999,2]
[400067355,1767063032043,-471.87022068,0.00016999,2]
[400067356,1767063032054,-13544.96619704,0.00017,2]
[400067360,1767063037733,-1840.50000087,0.00017,2]
[400067361,1767063037746,-3816.8,0.00017,2]
[400067382,1767063038188,-28566.50951521,0.00017,2]
[400067385,1767063038204,-21918.08337215,0.00017,2]
[400067394,1767063038289,-743.76137022,0.00017,2]
[400067396,1767063038302,-1265.5810753,0.00017,2]
[400067398,1767063038314,-2643.21449453,0.00017,2]
[400067400,1767063038327,-1575.97488614,0.00017,2]
[400067552,1767063039789,-438.87006152,0.00017,2]
[400067556,1767063039843,-500.0,0.00017,2]
[400067557,1767063039897,-588.0,0.00017,2]
[400067598,1767063040285,-5694.44658465,0.00017,2]
[400067917,1767063043408,-500.0,0.00017,2]
[400067919,1767063043419,-628.3168439,0.00017,2]
[400067925,1767063043461,-600.69956299,0.00017,2]
[400067927,1767063043473,-1233.35525829,0.00017,2]
[400067933,1767063043516,-1351.20648709,0.00017,2]
[400067940,1767063043571,-1194.489,0.00017,2]
[400068069,1767063044819,-169.57909405,0.000169,2]
[400068070,1767063044829,-46083.4565125,0.00017,2]
[400068071,1767063044845,-344.07215392,0.00017,2]
[400068158,1767063045669,-264.80341846,0.00017,2]
[400068161,1767063045682,-2666.41607791,0.00017,2]
[400068163,1767063045693,-3162.82026835,0.00017,2]
[400068167,1767063045723,-1071.09378651,0.00017,2]
[400068199,1767063046014,-4849.33131028,0.00017,2]
[400069419,1767064131522,304.76,0.00025364,120]
[400069432,1767064155347,-150.00000001,0.00015288,2]
[400069433,1767064155367,-150.0,0.00015288,2]
[400069434,1767064155388,-151.50433354,0.00015288,2]
[400069435,1767064155408,-154.53555957,0.00015288,2]
[400069436,1767064155428,-150.0,0.00015288,2]
[400069437,1767064155448,-151.8960395,0.00015288,2]
[400069438,1767064155469,-151.9400994,0.00015288,2]
[400069439,1767064155489,-150.0,0.00015288,2]
[400069440,1767064155513,-151.0,0.00016402,2]
[400069441,1767064155533,-151.0,0.00016402,2]
[400069442,1767064155553,-151.0,0.00016404,2]
[400069443,1767064155572,-151.0,0.00016404,2]
[400069444,1767064155592,-1003.91059731,0.00016499,2]
[400069445,1767064155612,-300.0,0.00016816,2]
[400069446,1767064155632,-609.37360769,0.00016816,2]
[400069447,1767064155652,-440.62817376,0.00016816,2]
[400069448,1767064155672,-253.32352774,0.00016816,2]
[400069449,1767064155692,-195.0,0.00016816,2]
[400069450,1767064155716,-185.15883523,0.000169,2]
[400069451,1767064155739,-204.76068371,0.000169,2]
[400069452,1767064155759,-1709.22545965,0.000169,2]
[400069453,1767064155777,-214.15037368,0.000169,2]
[400069454,1767064155797,-200.98515275,0.000169,2]
[400069455,1767064155816,-169.57909402,0.000169,2]
[400069456,1767064155835,-169.89606885,0.000169,2]
[400069457,1767064155854,-232.88097657,0.000169,2]
[400069458,1767064155874,-195.99975116,0.000169,2]
[400069460,1767064155894,-782.38583548,0.000169,2]
[400069461,1767064155914,-304.76,0.0001691,2]
[400069462,1767064155937,-151.0,0.0001699,2]
[400069463,1767064155957,-151.0,0.0001699,2]
[400069464,1767064155976,-151.0,0.0001699,2]
[400069465,1767064155995,-151.0,0.0001699,2]
[400069466,1767064156014,-151.0,0.0001699,2]
[400069467,1767064156034,-151.0,0.0001699,2]
[400069468,1767064156054,-151.0,0.0001699,2]
[400069469,1767064156073,-151.0,0.0001699,2]
[400069470,1767064156092,-151.0,0.0001699,2]
[400069471,1767064156116,-151.0,0.0001699,2]
[400069472,1767064156136,-212.16890224,0.0001699,2]
[400069473,1767064156155,-151.0,0.0001699,2]
[400069474,1767064156174,-151.0,0.0001699,2]
[400069475,1767064156196,-151.0,0.0001699,2]
[400069476,1767064156216,-151.0,0.0001699,2]
[400069477,1767064156236,-151.0,0.0001699,2]
[400069478,1767064156259,-151.0,0.0001699,2]
[400069479,1767064156280,-151.0,0.0001699,2]
[400069480,1767064156301,-151.0,0.0001699,2]
[400069481,1767064156321,-151.0,0.0001699,2]
[400069482,1767064156351,-151.0,0.0001699,2]
[400069483,1767064156379,-151.0,0.0001699,2]
[400069484,1767064156400,-257.85887532,0.0001699,2]
[400069485,1767064156421,-200.0,0.0001699,2]
[400069486,1767064156441,-192.43582026,0.0001699,2]
[400069487,1767064156462,-556.69,0.0001699,2]
[400069488,1767064156482,-39854.46559256,0.00016999,2]
[400069491,1767064163128,-151.0,0.00016996,2]
[400069492,1767064163150,-157.42099371,0.00016997,2]
[400069493,1767064163172,-23015.70153624,0.00016999,2]
[400069494,1767064163195,-532.8096401,0.00016999,2]
[400069498,1767064168217,-151.0,0.00016488,2]
[400069499,1767064168244,-151.0,0.00016488,2]
[400069500,1767064168267,-3409.6311842,0.00016999,2]
[400069501,1767064168289,-3436.379398,0.00016999,2]
[400069502,1767064168311,-4256.6153595,0.00016999,2]
[400069503,1767064168333,-500.0,0.00016999,2]
[400069504,1767064168354,-500.0,0.00016999,2]
[400069505,1767064168376,-500.0,0.00016999,2]
[400069506,1767064168397,-167.51545673,0.00016999,2]
[400069507,1767064168422,-300.0,0.00016999,2]
[400069508,1767064168444,-455.67358047,0.00016999,2]
[400069509,1767064168466,-514.40361836,0.00016999,2]
[400069510,1767064168494,-500.0,0.00016999,2]
[400069511,1767064168521,-500.0,0.00016999,2]
[400069512,1767064168547,-500.0,0.00016999,2]
[400069513,1767064168573,-500.0,0.00016999,2]
[400069514,1767064168600,-500.0,0.00016999,2]
[400069515,1767064168624,-500.0,0.00016999,2]
[400069516,1767064168647,-500.0,0.00016999,2]
[400069517,1767064168673,-500.0,0.00016999,2]
[400069518,1767064168697,-412.79584499,0.00016999,2]
[400069519,1767064168721,-500.0,0.00016999,2]
[400069520,1767064168744,-500.0,0.00016999,2]
[400069521,1767064168769,-500.0,0.00016999,2]
[400069522,1767064168791,-500.0,0.00016999,2]
[400069523,1767064168813,-500.0,0.00016999,2]
[400069524,1767064168832,-254.71020387,0.00016999,2]
[400069525,1767064168855,-317.48255387,0.00016999,2]
[400069526,1767064168879,-180.30915447,0.00016999,2]
[400069527,1767064168902,-500.0,0.00016999,2]
[400069528,1767064168924,-298099.43464554,0.00017,2]
[400069529,1767064170131,-31477.74014,0.00017,2]
[400069546,1767064231809,-151.0,0.00016434,2]
[400069549,1767064231820,-151.0,0.00016434,2]
[400069551,1767064231830,-151.0,0.00016503,2]
[400069553,1767064231840,-151.0,0.00016503,2]
[400069555,1767064231850,-167.4876273,0.000169,2]
[400069557,1767064231859,-1139.48363978,0.000169,2]
[400069559,1767064231869,-300.0,0.00016999,2]
[400069561,1767064231879,-331.84256289,0.00017,2]
[400069569,1767064231957,-34692.24686423,0.00017,2]
[400069572,1767064231970,-4790.94264816,0.00017,2]
[400069574,1767064231982,-304.28914531,0.00017,2]
[400069576,1767064231994,-11344.84838968,0.00017,2]
[400069577,1767064232006,-1048.93759387,0.00017,2]
[400069578,1767064232017,-701.7530165,0.00017,2]
[400069580,1767064232029,-653.94812092,0.00017,2]
[400069582,1767064232042,-781.96064254,0.00017,2]
[400069583,1767064232054,-16546.49415815,0.00017,2]
[400069584,1767064235266,186.99,0.00010488,2]
[400069589,1767064237998,-29778.78710289,0.00017,2]
[400069590,1767064238051,-24845.04712779,0.00017,2]
[400069591,1767064238068,-418.69371672,0.00017,2]
[400069592,1767064238105,-616.60236217,0.00017,2]
[400069767,1767064239989,-1468.25358138,0.00017,2]
[400069807,1767064240408,-4717533.11531573,0.00017,2]
[400069809,1767064240418,-1551001.34406442,0.00017,2]
[400069995,1767064244236,-53053.80488228,0.00017,2]
[400069996,1767064244246,-250.0,0.00017,2]
[400069997,1767064244258,-2000.0,0.00017,2]
[400069998,1767064244267,-151.67966389,0.00017,2]
[400069999,1767064244278,-152.85130422,0.00017,2]
[400070000,1767064244290,-307.32179982,0.00017068,2]
[400070001,1767064244300,-101948.46,0.00017069,2]
[400070002,1767064244310,-150.0,0.0001717,2]
[400070003,1767064244321,-556.69,0.00017264,2]
[400070004,1767064244331,-4232.29,0.00017398,2]
[400070005,1767064244341,-166.66,0.00017399,2]
[400070006,1767064244351,-556.69,0.00017538,2]
[400070007,1767064244360,-166.66,0.00017765,2]
[400070008,1767064244370,-556.69,0.00017812,2]
[400070009,1767064244380,-4829.1,0.00017898,2]
[400070010,1767064244390,-250.47378019,0.00017994,2]
[400070011,1767064244400,-556.69855829,0.00018086,2]
[400070012,1767064244410,-166.66,0.00018131,2]
[400070013,1767064244420,-150.0,0.0001836,2]
[400070014,1767064244429,-166.66,0.00018497,2]
[400070015,1767064244439,-154.33,0.000188,2]
[400070016,1767064244448,-154.33,0.000188,2]
[400070017,1767064244458,-166.66,0.00018864,2]
[400070018,1767064244468,-204.33210797,0.00019,2]
[400070019,1767064244478,-304.76,0.00019023,2]
[400070020,1767064244488,-162.92,0.0001904,2]
[400070021,1767064244498,-1000.0,0.00019122,2]
[400070022,1767064244507,-14028.23046,0.00019162,2]
[400070023,1767064244518,-879.6774525,0.00019187,2]
[400070024,1767064244528,-949.7792668,0.00019187,2]
[400070025,1767064244539,-166.66,0.0001923,2]
[400070026,1767064244553,-500.0,0.00019332,2]
[400070027,1767064244563,-3130.1213091,0.00019645,2]
[400070028,1767064244573,-171.087256,0.00019645,2]
[400070029,1767064244583,-196.2825708,0.00019676,2]
[400070030,1767064244593,-211.9243999,0.00019676,2]
[400070031,1767064244603,-207.4,0.00019729,2]
[400070032,1767064244615,-278.55,0.00020187,2]
[400070033,1767064244625,-156.45,0.00020579,2]
[400070034,1767064244635,-1514.0,0.000207,2]
[400070035,1767064244644,-2938.14,0.00020951,2]
[400070036,1767064244654,-150.99,0.00020951,2]
[400070037,1767064244664,-186.99,0.00020977,2]
[400070038,1767064244674,-3814.5,0.00021112,2]
[400070039,1767064244684,-304.76,0.00021137,2]
[400070040,1767064244694,-200.0,0.00021486,2]
[400070041,1767064244704,-1000.0,0.00021512,2]
[400070042,1767064244713,-740.84,0.00021646,2]
[400070043,1767064244723,-999.0,0.00021706,3]
[400070044,1767064244733,-1500.0,0.0002177,2]
[400070045,1767064244742,-5000.0,0.00021918,2]
[400070046,1767064244754,-156.31,0.00022,3]
[400070047,1767064244763,-167.48762725,0.00022078,2]
[400070048,1767064244773,-3240.0,0.00022098,2]
[400070049,1767064244783,-153.24,0.000221,7]
[400070050,1767064244792,-500.0,0.00022137,2]
[400070051,1767064244801,-156.45,0.00022294,2]
[400070052,1767064244811,-113964.98,0.000223,7]
[400070053,1767064244821,-186.7192932,0.00022468,2]
[400070054,1767064244830,-304.76,0.00023251,2]
[400070055,1767064244839,-450.38,0.00023284,2]
[400070056,1767064244849,-378.0,0.00023512,2]
[400070057,1767064244859,-378.0,0.00023634,2]
[400070058,1767064244869,-378.0,0.00023701,2]
[400070059,1767064244879,-378.0,0.00023815,2]
[400070060,1767064244890,-378.0,0.00023868,2]
[400070061,1767064244899,-1000.0,0.00023902,2]
[400070062,1767064244913,-378.0,0.0002397,2]
[400070063,1767064244923,-3600.0,0.00024,2]
[400070064,1767064244933,-322.64002753,0.00024,2]
[400070065,1767064244943,-156.45,0.00024009,2]
[400070066,1767064244952,-378.0,0.00024041,2]
[400070067,1767064244962,-378.0,0.0002406,2]
[400070068,1767064244971,-378.0,0.00024135,2]
[400070069,1767064244981,-378.0,0.00024137,2]
[400070070,1767064244990,-378.0,0.00024153,2]
[400070071,1767064245000,-378.0,0.00024225,2]
[400070072,1767064245010,-378.0,0.00024229,2]
[400070073,1767064245019,-378.0,0.00024239,2]
[400070074,1767064245029,-378.0,0.0002431,2]
[400070075,1767064245038,-1514.46060333,0.000244,2]
[400070076,1767064245048,-378.0,0.00024426,2]
[400070077,1767064245058,-378.0,0.00024626,2]
[400070078,1767064245067,-450.38,0.00024654,2]
[400070079,1767064245077,-1000.0,0.00024658,2]
[400070080,1767064245087,-378.0,0.00024666,2]
[400070081,1767064245097,-378.0,0.00024682,2]
[400070082,1767064245109,-378.0,0.00024739,2]
[400070083,1767064245119,-153.24,0.000248,7]
[400070084,1767064245129,-14514.1961022,0.000248,3]
[400070085,1767064245139,-378.0,0.00024836,2]
[400070086,1767064245148,-450388.317595,0.000249,3]
[400070087,1767064245158,-378.0,0.00024912,2]
[400070088,1767064245167,-500.94261419,0.00024942,2]
[400070089,1767064245177,-113964.98,0.00025,7]
[400070090,1767064245187,-378.0,0.00025053,2]
[400070091,1767064245197,-378.0,0.00025064,2]
[400070092,1767064245208,-5528.0,0.000254,5]
[400070093,1767064245221,-334.96190365,0.00025592,2]
[400070094,1767064245231,-378.0,0.00025602,2]
[400070095,1767064245240,-156.45,0.00025724,2]
[400070096,1767064245251,-1000.0,0.00026293,2]
[400070097,1767064245262,-278.55,0.00026676,2]
[400070098,1767064245271,-167.48762725,0.00027256,2]
[400070099,1767064245282,-167.49336328,0.00027397,2]
[400070100,1767064245564,-500.0,0.00027397,20]
[400070101,1767064245574,-155.27,0.00027397,30]
[400070102,1767064245585,-156.45,0.00027439,2]
[400070103,1767064245595,-5002.79,0.00027968,2]
[400070104,1767064245604,-274.3969955,0.0002827,2]
[400070105,1767064245614,-500.0,0.0002827,2]
[400070106,1767064245624,-500.0,0.0002827,2]
[400070107,1767064245636,-500.0,0.0002827,2]
[400070108,1767064245646,-500.0,0.0002827,2]
[400070109,1767064245655,-500.0,0.0002827,2]
[400070110,1767064245665,-500.0,0.0002827,2]
[400070111,1767064245675,-500.0,0.0002827,2]
[400070112,1767064245685,-500.0,0.0002827,2]
[400070113,1767064245695,-500.0,0.0002827,2]
[400070114,1767064245704,-500.0,0.0002827,2]
[400070116,1767064245714,-500.0,0.0002827,2]
[400070118,1767064245723,-500.0,0.0002827,2]
[400070119,1767064245733,-264.87790386,0.0002827,2]
[400070120,1767064245742,-620.0,0.0002827,2]
[400070121,1767064245752,-1000.0,0.0002827,2]
[400070122,1767064245761,-1000.0,0.0002827,2]
[400070123,1767064245776,-1000.0,0.0002827,2]
[400070124,1767064245787,-1000.0,0.0002827,2]
[400070125,1767064245797,-1000.0,0.0002827,2]
[400070126,1767064245806,-1000.0,0.0002827,2]
[400070127,1767064245816,-847.17668647,0.0002827,2]
[400070128,1767064245826,-1000.0,0.00028683,2]
[400070129,1767064245835,-156.45,0.00029154,2]
[400070130,1767064245845,-642.94,0.00029639,2]
[400070131,1767064245854,-185.15883523,0.00029846,2]
[400070132,1767064245866,-1139.48363976,0.00029846,2]
[400070133,1767064245876,-1000.0,0.0003,3]
[400070134,1767064245886,-435.93273706,0.0003005,5]
[400070135,1767064245896,-153.24,0.000301,7]
[400070136,1767064245905,-4765.762,0.00030138,2]
[400070137,1767064245915,-2448.284,0.00030138,2]
[400070138,1767064245925,-577.218,0.00030138,2]
[400070139,1767064245935,-395.82,0.000302,30]
[400070140,1767064245946,-740.84,0.00030304,2]
[400070141,1767064245955,-156.45,0.00030869,2]
[400070142,1767064245965,-605.671504,0.00031008,2]
[400070143,1767064245975,-167.48762725,0.00032435,2]
[400070144,1767064245985,-155.27,0.00032534,30]
[400070145,1767064245995,-156.45,0.00032584,2]
[400070146,1767064246005,-565.0,0.00033138,2]
[400070147,1767064246015,-278.55,0.00033165,2]
[400070148,1767064246025,-113964.98,0.000332,14]
[400070149,1767064246036,-3083.57,0.000332,2]
[400070150,1767064246046,-167.73,0.00033494,2]
[400070151,1767064246057,-177.91868972,0.00033765,14]
[400070152,1767064246067,-3846.0,0.00034133,5]
[400070153,1767064246077,-156.45,0.00034299,2]
[400070154,1767064246087,-241.18537701,0.00035,60]
[400070155,1767064246098,-1019.542,0.00035171,41]
[400070156,1767064246108,-211.949,0.00035171,41]
[400070157,1767064246117,-156.45,0.00036014,2]
[400070158,1767064246134,-565.0,0.00036138,2]
[400070159,1767064246145,-153.24,0.000362,14]
[400070160,1767064246156,-151.0,0.00036986,31]
[400070161,1767064246167,-151.0,0.00036986,31]
[400070162,1767064246178,-151.0,0.00036986,31]
[400070163,1767064246189,-151.0,0.00036986,31]
[400070164,1767064246204,-151.0,0.00036986,31]
[400070165,1767064246221,-151.0,0.00036986,31]
[400070166,1767064246232,-151.0,0.00036986,31]
[400070167,1767064246243,-151.0,0.00036986,31]
[400070168,1767064246255,-151.0,0.00036986,31]
[400070169,1767064246266,-245.63853,0.00036986,31]
[400070170,1767064246276,-167.48762725,0.00037613,2]
[400070171,1767064246292,-155.27,0.00037671,30]
[400070172,1767064246303,-156.45,0.00037728,2]
[400070173,1767064246315,-3083.57,0.000378,2]
[400070174,1767064246325,-406.04043184,0.000389,31]
[400070175,1767064246336,-316.27353764,0.000389,120]
[400070176,1767064246346,-155.66,0.00039,120]
[400070177,1767064246356,-162.821082,0.00039025,30]
[400070178,1767064246371,-176.26920109,0.000393,5]
[400070179,1767064246383,-501.19150219,0.000393,5]
[400070180,1767064246393,-293.98923011,0.000393,5]
[400070181,1767064246404,-174.71123832,0.000393,5]
[400070182,1767064246415,-500.0,0.000393,5]